bitfinex/quotes_BTCUSD_20240810
["timestamp","ask_amount","ask_price","bid_price","bid_amount"]
[1723264269715,0.00064063,60443.0,60442.0,3.81717571]
[1723264269918,0.00064063,60443.0,60442.0,3.82917571]
[1723264270120,0.00064063,60443.0,60442.0,3.97794257]
[1723264270766,0.00064063,60443.0,60442.0,3.98794257]
[1723264270975,0.00076803,60444.0,60443.0,1.791355]
[1723264271193,0.00076803,60444.0,60443.0,4.01278669]
[1723264271404,0.00076803,60444.0,60443.0,4.00278669]
[1723264271636,0.00076803,60444.0,60443.0,4.01278669]
[1723264272318,0.00076803,60444.0,60443.0,4.01192803]
[1723264272976,0.00076803,60444.0,60443.0,3.88097803]
[1723264273194,0.00076803,60444.0,60443.0,3.88297803]
[1723264273396,0.00076803,60444.0,60443.0,3.91612803]
[1723264273641,0.00076803,60444.0,60443.0,4.06478475]
[1723264273857,0.00076803,60444.0,60443.0,4.07483749]
[1723264274069,0.00076803,60444.0,60443.0,3.98135451]
[1723264274468,0.00076803,60444.0,60443.0,4.08483272]
[1723264274917,0.00076803,60444.0,60443.0,3.98135451]
[1723264275353,0.00076803,60444.0,60443.0,4.08483222]
[1723264275571,0.00076803,60444.0,60443.0,3.83243845]
[1723264275818,0.00076803,60444.0,60443.0,3.61796272]
[1723264276012,0.00076803,60444.0,60443.0,3.93587944]
[1723264276226,0.00076803,60444.0,60443.0,3.43589736]
[1723264276426,0.00076803,60444.0,60443.0,3.93587943]
[1723264277445,0.00076803,60444.0,60443.0,4.08448326]
[1723264277615,0.00076803,60444.0,60443.0,4.08424754]
[1723264277899,0.00076803,60444.0,60443.0,3.98077284]
[1723264278061,0.00076803,60444.0,60443.0,4.08424931]
[1723264279435,0.00076803,60444.0,60443.0,3.93565609]
[1723264279697,0.00076803,60444.0,60443.0,4.08424931]
[1723264280551,0.000831,60445.0,60444.0,1.534128]
[1723264280798,0.0001,60449.0,60448.0,0.320831]
[1723264280998,0.0001,60449.0,60448.0,2.27211997]
[1723264281139,0.0001,60449.0,60448.0,2.95684397]
[1723264281778,0.0001,60449.0,60448.0,3.65684397]
[1723264282322,0.0001,60449.0,60448.0,3.81692028]
[1723264283413,0.0001,60449.0,60448.0,3.80692028]
[1723264283626,0.0001,60449.0,60448.0,3.9446944]
[1723264283861,0.0001,60449.0,60448.0,3.9546944]
[1723264285290,0.0001,60449.0,60448.0,3.9446944]
[1723264285854,0.0001,60449.0,60448.0,3.2446944]
[1723264286506,0.0001,60449.0,60448.0,3.41634171]
[1723264287120,0.0001,60449.0,60448.0,3.25467853]
[1723264287357,0.0001,60449.0,60448.0,3.42632932]
[1723264287575,0.0001,60449.0,60448.0,2.92666454]
[1723264287778,0.0001,60449.0,60448.0,3.30252934]
[1723264287963,0.0001,60449.0,60448.0,3.24142934]
[1723264288377,0.0001,60449.0,60448.0,3.24143819]
[1723264288986,0.0001,60449.0,60448.0,3.24170603]
[1723264289182,0.000931,60449.0,60448.0,3.24170603]
[1723264290047,0.000931,60449.0,60448.0,3.25170603]
[1723264290944,0.004241,60456.0,60455.0,1.157884]
[1723264291149,0.004241,60456.0,60455.0,2.83116417]
[1723264291535,0.004241,60456.0,60455.0,2.89982474]
[1723264292570,0.004241,60456.0,60455.0,2.91382474]
[1723264292782,0.004241,60456.0,60455.0,2.92782474]
[1723264294629,0.004241,60456.0,60455.0,2.9278615]
[1723264295249,0.087241,60456.0,60455.0,2.5970375]
[1723264295397,0.147441,60456.0,60455.0,1.25672893]
[1723264295858,0.147441,60456.0,60455.0,1.15672893]
[1723264296272,0.147441,60456.0,60455.0,1.48755293]
[1723264298216,0.147441,60456.0,60455.0,1.48706873]
[1723264298420,0.147441,60456.0,60455.0,1.47306873]
[1723264298627,0.147441,60456.0,60455.0,1.45906873]
[1723264298843,0.147441,60456.0,60455.0,1.45906542]
[1723264299060,0.147441,60456.0,60455.0,1.46906542]
[1723264299465,0.147441,60456.0,60455.0,1.46406542]
[1723264300011,0.147441,60456.0,60455.0,1.4641502]
[1723264300237,0.147441,60456.0,60455.0,1.4691502]
[1723264301660,0.147441,60456.0,60455.0,0.9729142]
[1723264301892,0.147441,60456.0,60455.0,0.85991492]
[1723264302118,0.147441,60456.0,60455.0,0.97275768]
[1723264302632,0.147441,60456.0,60455.0,0.96275768]
[1723264302835,0.147441,60456.0,60455.0,0.96675768]
[1723264303029,0.147441,60456.0,60455.0,0.97075768]
[1723264304498,0.147441,60456.0,60455.0,1.13616968]
[1723264305138,0.147441,60456.0,60455.0,1.46699368]
[1723264307250,0.004241,60456.0,60455.0,1.98041768]
[1723264307482,0.004241,60456.0,60455.0,2.31124168]
[1723264307689,0.004241,60456.0,60455.0,2.41033531]
[1723264307927,0.004241,60456.0,60455.0,2.40633531]
[1723264308588,0.004241,60456.0,60455.0,2.41626318]
[1723264308793,0.004241,60456.0,60455.0,3.11462718]
[1723264308995,0.004241,60456.0,60455.0,3.24436085]
[1723264309202,0.004241,60456.0,60455.0,2.92912679]
[1723264309374,0.004241,60456.0,60455.0,3.44208797]
[1723264309782,0.004241,60456.0,60455.0,3.43008429]
[1723264309988,0.004241,60456.0,60455.0,3.25844977]
[1723264310192,0.004241,60456.0,60455.0,3.24544977]
[1723264311221,0.004241,60456.0,60455.0,3.25944977]
[1723264311420,0.004241,60456.0,60455.0,3.95944977]
[1723264311652,0.004241,60456.0,60455.0,3.97344977]
[1723264312263,0.004241,60456.0,60455.0,3.82704977]
[1723264312690,0.004241,60456.0,60455.0,3.85755769]
[1723264312691,0.085041,60456.0,60455.0,3.85755769]
[1723264312908,0.085041,60456.0,60455.0,3.61213339]
[1723264313258,0.085041,60456.0,60455.0,2.91213339]
[1723264313466,0.085041,60456.0,60455.0,2.79872679]
[1723264313665,0.085041,60456.0,60455.0,2.91225485]
[1723264314186,0.085041,60456.0,60455.0,2.91316895]
[1723264314748,0.004241,60456.0,60455.0,3.12822819]
[1723264315634,0.004241,60456.0,60455.0,3.01469982]
[1723264315789,0.004241,60456.0,60455.0,3.12827268]
[1723264317016,0.004241,60456.0,60455.0,3.1282256]
[1723264318532,0.004241,60456.0,60455.0,3.8282256]
[1723264318759,0.004241,60456.0,60455.0,3.9746046]
[1723264318931,0.004241,60456.0,60455.0,3.64604089]
[1723264319129,0.004241,60456.0,60455.0,3.62304089]
[1723264319858,0.004241,60456.0,60455.0,3.95153293]
[1723264320444,0.004241,60456.0,60455.0,3.47430893]
[1723264320650,0.004241,60456.0,60455.0,3.25930728]
[1723264320651,0.145841,60456.0,60455.0,3.25930728]
[1723264320858,0.145841,60456.0,60455.0,2.55930728]
[1723264321064,0.145841,60456.0,60455.0,2.21855541]
[1723264321267,0.145841,60456.0,60455.0,1.58855541]
[1723264321687,0.145841,60456.0,60455.0,1.91904513]
[1723264321891,0.145841,60456.0,60455.0,1.58822113]
[1723264322101,0.145841,60456.0,60455.0,1.47506502]
[1723264322302,0.145841,60456.0,60455.0,1.58769627]
[1723264323396,0.145841,60456.0,60455.0,0.99146027]
[1723264323598,0.31125,60456.0,60455.0,0.99146027]
[1723264323797,0.972888,60456.0,60455.0,0.82764535]
[1723264324006,0.972888,60456.0,60455.0,0.0289141]
[1723264324386,0.972888,60456.0,60455.0,0.0149141]
[1723264324587,1.00301426,60456.0,60455.0,0.0199141]
[1723264324951,1.00301426,60456.0,60455.0,0.0059141]
[1723264325281,1.33383326,60456.0,60455.0,0.0009141]
[1723264325502,1.33383326,60456.0,60455.0,0.0019141]
[1723264325716,1.33383326,60456.0,60455.0,0.0029141]
[1723264327378,1.00301426,60456.0,60455.0,0.0029141]
[1723264328045,0.972888,60456.0,60455.0,0.0029141]
[1723264328271,1.00303707,60456.0,60455.0,0.0029141]
[1723264328481,0.31125,60456.0,60455.0,0.0029141]
[1723264328882,0.642069,60456.0,60455.0,0.0029141]
[1723264329791,0.31125,60456.0,60455.0,0.0029141]
[1723264330466,0.642069,60456.0,60455.0,0.0029141]
[1723264331221,0.31125,60456.0,60455.0,0.16672902]
[1723264331428,0.004241,60456.0,60455.0,0.33214102]
[1723264331652,0.004241,60456.0,60455.0,0.16672902]
[1723264332032,0.004241,60456.0,60455.0,0.16472902]
[1723264332240,0.004241,60456.0,60455.0,0.16572902]
[1723264332445,0.004241,60456.0,60455.0,0.16672902]
[1723264332636,0.004241,60456.0,60455.0,0.16572902]
[1723264332848,0.004241,60456.0,60455.0,0.16772902]
[1723264333602,0.004241,60456.0,60455.0,0.16672902]
[1723264333817,0.004241,60456.0,60455.0,0.33214102]
[1723264333992,0.004241,60456.0,60455.0,0.33414102]
[1723264334591,0.004241,60456.0,60455.0,0.33214102]
[1723264334791,0.004241,60456.0,60455.0,0.33314102]
[1723264334985,0.004241,60456.0,60455.0,0.33614102]
[1723264337684,0.004241,60456.0,60455.0,0.17072902]
[1723264337859,0.086141,60456.0,60455.0,0.17072902]
[1723264338795,0.31535,60456.0,60455.0,0.17072902]
[1723264339020,0.646169,60456.0,60455.0,0.17072902]
[1723264340328,0.31535,60456.0,60455.0,0.17072902]
[1723264340790,0.646169,60456.0,60455.0,0.17072902]
[1723264341897,0.976988,60456.0,60455.0,0.17072902]
[1723264342136,0.976988,60456.0,60455.0,0.0069141]
[1723264342606,1.00723997,60456.0,60455.0,0.0039141]
[1723264342832,1.00723987,60456.0,60455.0,0.0009141]
[1723264343061,1.00723987,60456.0,60455.0,0.0019141]
[1723264343770,1.33805887,60456.0,60455.0,0.0019141]
[1723264344001,0.827142,60449.0,60448.0,0.0009141]
[1723264344253,1.62288456,60449.0,60448.0,0.0009141]
[1723264344525,1.63588456,60449.0,60448.0,0.0009141]
[1723264344753,1.64588456,60449.0,60448.0,0.0009141]
[1723264345017,1.63588456,60449.0,60448.0,0.0009141]
[1723264345254,1.63588456,60449.0,60448.0,0.0019141]
[1723264345255,1.99674156,60449.0,60448.0,0.0019141]
[1723264345500,1.97674156,60449.0,60448.0,0.0009141]
[1723264345774,2.02266063,60449.0,60448.0,0.0009141]
[1723264345995,1.518978,60444.0,60443.0,0.0009141]
[1723264346230,1.79471002,60444.0,60443.0,0.0009141]
[1723264347842,1.71286356,60444.0,60443.0,0.0009141]
[1723264348572,1.71286356,60444.0,60443.0,0.0019141]
[1723264349258,1.682378,60444.0,60443.0,0.0019141]
[1723264349481,1.71290477,60444.0,60443.0,0.0019141]
[1723264349767,1.71390477,60444.0,60443.0,0.0029141]
[1723264352752,1.683378,60444.0,60443.0,0.0029141]
[1723264352980,1.71380256,60444.0,60443.0,0.0029141]
[1723264353459,1.71380315,60444.0,60443.0,0.0029141]
[1723264354137,1.683378,60444.0,60443.0,0.0029141]
[1723264354358,1.71379894,60444.0,60443.0,0.0029141]
[1723264354575,1.71384844,60444.0,60443.0,0.0029141]
[1723264356523,1.683378,60444.0,60443.0,0.0029141]
[1723264356736,1.71386374,60444.0,60443.0,0.0029141]
[1723264360121,1.71383159,60444.0,60443.0,0.0029141]
[1723264362546,1.302307,60433.0,60432.0,0.0009141]
[1723264362728,1.586307,60433.0,60432.0,0.0009141]
[1723264363155,1.609307,60433.0,60432.0,0.0009141]
[1723264363801,1.610307,60433.0,60432.0,0.0009141]
[1723264367727,1.620307,60433.0,60432.0,0.0009141]
[1723264367953,1.64089907,60433.0,60432.0,0.0009141]
[1723264368603,1.65089907,60433.0,60432.0,0.0009141]
[1723264368875,1.66085962,60433.0,60432.0,0.0009141]
[1723264369104,1.65085962,60433.0,60432.0,0.0009141]
[1723264369515,1.66085962,60433.0,60432.0,0.0009141]
[1723264370073,1.65085962,60433.0,60432.0,0.0009141]
[1723264370306,1.66085962,60433.0,60432.0,0.0009141]
[1723264370544,1.68085962,60433.0,60432.0,0.0009141]
[1723264370757,1.66085142,60433.0,60432.0,0.0009141]
[1723264370976,1.68085142,60433.0,60432.0,0.0009141]
[1723264371181,1.66085142,60433.0,60432.0,0.0009141]
[1723264371668,1.65985142,60433.0,60432.0,0.0009141]
[1723264371867,1.66185142,60433.0,60432.0,0.0009141]
[1723264372495,1.65985142,60433.0,60432.0,0.0009141]
[1723264372710,1.66185142,60433.0,60432.0,0.0009141]
[1723264373314,1.65189087,60433.0,60432.0,0.0009141]
[1723264374194,1.65182944,60433.0,60432.0,0.0009141]
[1723264374824,1.6518341,60433.0,60432.0,0.0009141]
[1723264375731,1.4815341,60433.0,60432.0,0.0009141]
[1723264377625,1.2138341,60433.0,60432.0,0.0009141]
[1723264377827,1.3275341,60433.0,60432.0,0.0009141]
[1723264378038,0.97355507,60433.0,60432.0,0.0009141]
[1723264379998,0.943062,60433.0,60432.0,0.0009141]
[1723264380163,0.97357053,60433.0,60432.0,0.0009141]
[1723264380389,1.47851553,60433.0,60432.0,0.0009141]
[1723264380594,1.50151553,60433.0,60432.0,0.0009141]
[1723264380996,1.48149704,60433.0,60432.0,0.0009141]
[1723264382217,1.35779704,60433.0,60432.0,0.0009141]
[1723264382425,1.48149704,60433.0,60432.0,0.0009141]
[1723264383236,1.49149704,60433.0,60432.0,0.0009141]
[1723264383439,1.32749704,60433.0,60432.0,0.0009141]
[1723264383645,0.99655204,60433.0,60432.0,0.0759141]
[1723264384275,0.9964724,60433.0,60432.0,0.0759141]
[1723264384684,0.966062,60433.0,60432.0,0.0759141]
[1723264384888,0.99647244,60433.0,60432.0,0.0759141]
[1723264385729,0.99647244,60433.0,60432.0,0.0009141]
[1723264387748,1.136662,60433.0,60432.0,0.0009141]
[1723264387970,0.88273642,60433.0,60432.0,0.1359141]
[1723264390053,0.88073642,60433.0,60432.0,0.1359141]
[1723264390268,0.88373642,60433.0,60432.0,0.1359141]
[1723264390707,0.88073642,60433.0,60432.0,0.1359141]
[1723264391277,0.852362,60433.0,60432.0,0.1359141]
[1723264391471,0.88266987,60433.0,60432.0,0.1359141]
[1723264391696,0.88266987,60433.0,60432.0,0.0009141]
[1723264392321,1.21361487,60433.0,60432.0,0.0009141]
[1723264392525,1.29551487,60433.0,60432.0,0.0009141]
[1723264393089,1.38651487,60433.0,60432.0,0.0009141]
[1723264393476,1.37651487,60433.0,60432.0,0.0009141]
[1723264393679,1.38651487,60433.0,60432.0,0.0009141]
[1723264395436,1.36651487,60433.0,60432.0,0.0009141]
[1723264395648,1.43576117,60433.0,60432.0,0.0009141]
[1723264396028,1.41576117,60433.0,60432.0,0.0009141]
[1723264396264,1.3665043,60433.0,60432.0,0.0009141]
[1723264396470,1.2236043,60433.0,60432.0,0.0009141]
[1723264396731,1.2136043,60433.0,60432.0,0.0009141]
[1723264398511,0.88262496,60433.0,60432.0,0.0759141]
[1723264398789,1.21356996,60433.0,60432.0,0.0759141]
[1723264399433,1.21356996,60433.0,60432.0,0.0009141]
[1723264406138,1.21363258,60433.0,60432.0,0.0009141]
[1723264406705,1.21363244,60433.0,60432.0,0.0009141]
[1723264407365,1.26306437,60433.0,60432.0,0.0009141]
[1723264407842,1.37676437,60433.0,60432.0,0.0009141]
[1723264408024,1.34643893,60433.0,60432.0,0.0009141]
[1723264408300,1.37676193,60433.0,60432.0,0.0009141]
[1723264410647,1.32733,60433.0,60432.0,0.0009141]
[1723264410855,1.3767723,60433.0,60432.0,0.0009141]
[1723264412666,1.3273318,60433.0,60432.0,0.0009141]
[1723264413233,1.3767723,60433.0,60432.0,0.0009141]
[1723264413693,1.4546723,60433.0,60432.0,0.0009141]
[1723264413912,1.57329256,60433.0,60432.0,0.0009141]
[1723264414330,1.52762637,60433.0,60432.0,0.0009141]
[1723264414542,1.64188834,60433.0,60432.0,0.0009141]
[1723264414751,1.8151143,60433.0,60432.0,0.0009141]
[1723264414960,2.05187568,60433.0,60432.0,0.0009141]
[1723264415160,2.14423719,60433.0,60432.0,0.0009141]
[1723264415376,2.14421652,60433.0,60432.0,0.0009141]
[1723264415574,1.97401123,60433.0,60432.0,0.0009141]
[1723264415977,1.97101123,60433.0,60432.0,0.0009141]
[1723264416389,1.97401123,60433.0,60432.0,0.0009141]
[1723264417214,2.14705138,60433.0,60432.0,0.0009141]
[1723264418235,2.14405138,60433.0,60432.0,0.0009141]
[1723264418654,2.15605138,60433.0,60432.0,0.0029141]
[1723264419281,2.15684805,60433.0,60432.0,0.0029141]
[1723264419488,2.15684805,60433.0,60420.0,0.0765]
[1723264419489,0.941225,60421.0,60420.0,0.0765]
[1723264419694,0.97166502,60421.0,60420.0,0.0765]
[1723264419916,0.97166502,60421.0,60420.0,0.11116433]
[1723264420122,0.02,60420.0,60413.0,0.0631]
[1723264420324,0.279224,60414.0,60413.0,0.0631]
[1723264420526,0.279224,60414.0,60411.0,0.1396]
[1723264420527,0.49659,60412.0,60411.0,0.1396]
[1723264420732,0.52703002,60412.0,60411.0,0.1396]
[1723264420939,0.85809002,60412.0,60411.0,0.1396]
[1723264421153,0.82765,60412.0,60411.0,0.1396]
[1723264422354,0.827677,60410.0,60409.0,0.0760141]
[1723264422558,0.97177484,60410.0,60409.0,0.0760141]
[1723264422728,1.30284584,60410.0,60409.0,0.0760141]
[1723264423321,1.30284649,60410.0,60409.0,0.0760141]
[1723264424195,1.272448,60410.0,60409.0,0.0760141]
[1723264424630,1.272448,60410.0,60409.0,0.0780141]
[1723264426550,1.272448,60410.0,60409.0,0.0029141]
[1723264428609,1.295448,60410.0,60409.0,0.0029141]
[1723264429073,1.295448,60410.0,60409.0,0.0019141]
[1723264429520,1.295448,60410.0,60409.0,0.0009141]
[1723264430248,1.8254895,60410.0,60409.0,0.0009141]
[1723264430454,1.4744185,60410.0,60409.0,0.0009141]
[1723264430659,1.3607185,60410.0,60409.0,0.0009141]
[1723264430869,1.4744185,60410.0,60409.0,0.0009141]
[1723264431091,1.4964185,60410.0,60409.0,0.0009141]
[1723264431310,1.4994185,60410.0,60409.0,0.0009141]
[1723264431528,1.4974185,60410.0,60409.0,0.0009141]
[1723264431733,1.4944185,60410.0,60409.0,0.0009141]
[1723264431867,1.8374895,60410.0,60409.0,0.0029141]
[1723264432079,2.00122429,60410.0,60409.0,0.0029141]
[1723264432282,1.307243,60405.0,60404.0,0.0009141]
[1723264432515,1.82553137,60405.0,60404.0,0.0009141]
[1723264433157,1.95885592,60405.0,60404.0,0.0009141]
[1723264433356,1.98932721,60405.0,60404.0,0.0009141]
[1723264434165,1.80551229,60405.0,60404.0,0.0009141]
[1723264434384,1.65711229,60405.0,60404.0,0.0009141]
[1723264434532,1.21218655,60405.0,60404.0,0.0009141]
[1723264434737,1.32588655,60405.0,60404.0,0.0009141]
[1723264435067,1.33588655,60405.0,60404.0,0.0009141]
[1723264435463,1.34388655,60405.0,60404.0,0.0019141]
[1723264435731,1.34180158,60405.0,60404.0,0.0029141]
[1723264435932,1.33380158,60405.0,60404.0,0.0019141]
[1723264436257,1.34380158,60405.0,60404.0,0.0019141]
[1723264436705,1.33380158,60405.0,60404.0,0.0019141]
[1723264437021,1.33580158,60405.0,60404.0,0.0009141]
[1723264437193,1.34380158,60405.0,60404.0,0.0009141]
[1723264437582,1.35180158,60405.0,60404.0,0.0009141]
[1723264440227,1.35181551,60405.0,60404.0,0.0009141]
[1723264440405,1.37181551,60405.0,60404.0,0.0009141]
[1723264440588,1.45006866,60405.0,60404.0,0.0009141]
[1723264441426,1.51026866,60405.0,60404.0,0.0009141]
[1723264442082,1.50026866,60405.0,60404.0,0.0009141]
[1723264442565,1.49026866,60405.0,60404.0,0.0009141]
[1723264443483,1.84136666,60405.0,60404.0,0.0009141]
[1723264443686,1.51025692,60405.0,60404.0,0.0009141]
[1723264444045,1.479943,60405.0,60404.0,0.0009141]
[1723264444196,1.51025719,60405.0,60404.0,0.0009141]
[1723264445317,1.479943,60405.0,60404.0,0.0009141]
[1723264445530,1.51032226,60405.0,60404.0,0.0009141]
[1723264446788,1.67413718,60405.0,60404.0,0.0009141]
[1723264447127,1.67413718,60405.0,60395.0,0.0009141]
[1723264447128,1.282714,60396.0,60395.0,0.0009141]
[1723264447337,1.33609326,60396.0,60395.0,0.0009141]
[1723264447968,1.33611337,60396.0,60395.0,0.0009141]
[1723264448186,1.33611448,60396.0,60395.0,0.0009141]
[1723264448390,1.35611448,60396.0,60395.0,0.0009141]
[1723264448572,1.76406148,60396.0,60395.0,0.0009141]
[1723264448789,1.76606148,60396.0,60395.0,0.0009141]
[1723264449465,1.74606148,60396.0,60395.0,0.0009141]
[1723264449676,1.33811448,60396.0,60395.0,0.0009141]
[1723264450074,1.34011448,60396.0,60395.0,0.0009141]
[1723264450444,1.33811448,60396.0,60395.0,0.0009141]
[1723264450654,1.33611448,60396.0,60395.0,0.0009141]
[1723264450825,1.34311448,60396.0,60395.0,0.0009141]
[1723264451220,1.35011448,60396.0,60395.0,0.0009141]
[1723264452292,1.36011114,60396.0,60395.0,0.0009141]
[1723264452526,1.34006982,60396.0,60395.0,0.1433141]
[1723264457364,1.34009806,60396.0,60395.0,0.1433141]
[1723264457830,1.34009806,60396.0,60395.0,0.0779141]
[1723264459921,1.34009806,60396.0,60395.0,0.0009141]
[1723264460927,1.34017844,60396.0,60395.0,0.0009141]
[1723264463637,1.34017844,60396.0,60395.0,0.0674141]
[1723264464954,1.34007661,60396.0,60395.0,0.0009141]
[1723264466373,1.36601664,60396.0,60395.0,0.0009141]
[1723264467426,1.36601664,60396.0,60395.0,0.1479141]
[1723264469229,1.36601509,60396.0,60395.0,0.1479141]
[1723264469463,1.36601509,60396.0,60395.0,0.0814141]
[1723264469698,1.33565403,60396.0,60395.0,0.0814141]
[1723264469956,1.36601543,60396.0,60395.0,0.0814141]
[1723264473445,1.33565403,60396.0,60395.0,0.0814141]
[1723264473669,1.36598296,60396.0,60395.0,0.0814141]
[1723264475221,1.36598296,60396.0,60395.0,0.0009141]
[1723264476486,1.41445709,60396.0,60395.0,0.0009141]
[1723264477354,1.36598296,60396.0,60395.0,0.0009141]
[1723264477806,1.36603697,60396.0,60395.0,0.0009141]
[1723264479178,1.41450141,60396.0,60395.0,0.0009141]
[1723264480277,1.42450141,60396.0,60395.0,0.0009141]
[1723264480513,1.58311167,60396.0,60395.0,0.0009141]
[1723264480731,1.63246751,60396.0,60395.0,0.0009141]
[1723264481381,1.77606751,60396.0,60395.0,0.0009141]
[1723264481605,0.341169,60392.0,60391.0,0.0001]
[1723264481832,0.88859139,60392.0,60391.0,0.0001]
[1723264482080,1.93056283,60392.0,60391.0,0.0001]
[1723264482294,1.189168,60388.0,60381.0,0.089641]
[1723264482502,0.610528,60383.0,60381.0,0.009141]
[1723264482727,1.32635219,60383.0,60381.0,0.009141]
[1723264485532,1.32641868,60383.0,60381.0,0.009141]
[1723264485860,1.295966,60383.0,60381.0,0.009141]
[1723264486034,1.32641891,60383.0,60381.0,0.009141]
[1723264489865,1.32641891,60383.0,60382.0,0.1467141]
[1723264489866,0.97210865,60383.0,60382.0,0.1467141]
[1723264492756,0.03036165,60383.0,60382.0,0.31052902]
[1723264492966,0.14936664,60396.0,60383.0,0.1458]
[1723264492967,0.1137,60385.0,60383.0,0.1458]
[1723264493206,0.1137,60385.0,60384.0,0.30961492]
[1723264493907,0.1137,60385.0,60384.0,0.47522092]
[1723264494945,0.1137,60385.0,60384.0,0.91886004]
[1723264495247,0.1137,60385.0,60384.0,0.91886]
[1723264495448,0.1147,60385.0,60384.0,0.91986]
[1723264495622,0.1157,60385.0,60384.0,0.91986]
[1723264497114,0.1157,60385.0,60384.0,1.25132515]
[1723264497823,0.002,60385.0,60384.0,1.25132515]
[1723264498244,0.002,60385.0,60384.0,0.92011215]
[1723264500421,0.002,60385.0,60384.0,0.80743392]
[1723264500828,0.1157,60385.0,60384.0,0.91984973]
[1723264501593,0.1157,60385.0,60384.0,1.25106273]
[1723264502433,0.1157,60385.0,60384.0,0.91984973]
[1723264503275,0.1157,60385.0,60384.0,0.91980769]
[1723264503728,0.1157,60385.0,60384.0,0.91977959]
[1723264504178,0.1157,60385.0,60384.0,0.58856659]
[1723264505334,0.1157,60385.0,60384.0,0.91977959]
[1723264505556,0.1157,60385.0,60384.0,0.42296059]
[1723264507352,0.281304,60385.0,60384.0,0.27716059]
[1723264508459,0.1157,60385.0,60384.0,0.27716059]
[1723264509996,0.1157,60385.0,60384.0,0.16481492]
[1723264511666,0.612512,60385.0,60384.0,0.16481492]
[1723264511845,0.612512,60385.0,60384.0,0.001]
[1723264516249,0.165608,60384.0,60382.0,0.0009141]
[1723264516464,0.165608,60384.0,60383.0,0.16381492]
[1723264517599,0.166608,60384.0,60383.0,0.16381492]
[1723264517821,0.165609,60383.0,60382.0,0.0019141]
[1723264518020,0.165609,60383.0,60382.0,0.0009141]
[1723264520112,0.166609,60383.0,60382.0,0.0019141]
[1723264520335,0.165609,60383.0,60382.0,0.0019141]
[1723264520707,0.165609,60383.0,60382.0,0.0029141]
[1723264521166,0.165609,60383.0,60382.0,0.11494303]
[1723264521408,0.165609,60383.0,60382.0,0.11492434]
[1723264523510,0.000832,60387.0,60386.0,0.496803]
[1723264523825,0.000832,60387.0,60386.0,1.24713016]
[1723264524872,0.000832,60387.0,60386.0,1.24813016]
[1723264525044,0.000832,60387.0,60386.0,1.13611992]
[1723264525290,0.000832,60387.0,60386.0,0.91726475]
[1723264525782,0.000832,60387.0,60386.0,1.24839443]
[1723264526195,0.000832,60387.0,60386.0,1.24739443]
[1723264526612,0.000832,60387.0,60386.0,1.24839443]
[1723264526794,0.000832,60387.0,60386.0,1.24739443]
[1723264526964,0.000832,60387.0,60386.0,1.24839443]
[1723264527171,0.001832,60387.0,60386.0,1.24939443]
[1723264527373,0.001832,60387.0,60386.0,0.91719243]
[1723264527586,0.000832,60387.0,60386.0,0.91619243]
[1723264527922,0.002832,60387.0,60386.0,1.24939443]
[1723264528136,0.001832,60387.0,60386.0,1.24839443]
[1723264528469,0.001832,60387.0,60386.0,0.91719243]
[1723264528695,0.001832,60387.0,60386.0,0.91692938]
[1723264529538,0.002832,60387.0,60386.0,0.91792938]
[1723264529931,0.001832,60387.0,60386.0,1.24813138]
[1723264530118,0.001832,60387.0,60386.0,0.91692938]
[1723264531040,0.001832,60387.0,60386.0,1.24813138]
[1723264531433,0.002832,60387.0,60386.0,1.24913138]
[1723264533009,0.002832,60387.0,60386.0,1.58033338]
[1723264533663,0.002832,60387.0,60386.0,1.24913138]
[1723264533870,0.002832,60387.0,60386.0,2.39233338]
[1723264534072,0.002832,60387.0,60386.0,3.16606039]
[1723264534389,0.000831,60409.0,60403.0,0.971072]
[1723264534390,0.1137,60408.0,60403.0,0.971072]
[1723264534604,0.1137,60408.0,60403.0,1.24689838]
[1723264535647,0.000831,60409.0,60403.0,1.24689838]
[1723264535648,0.1137,60405.0,60403.0,1.24689838]
[1723264536055,0.1137,60405.0,60403.0,1.24707627]
[1723264536263,0.1137,60405.0,60403.0,0.91596727]
[1723264536464,0.1137,60405.0,60403.0,0.44155827]
[1723264537071,0.002831,60404.0,60403.0,0.45855827]
[1723264537476,0.001831,60404.0,60403.0,0.44955827]
[1723264537688,0.001831,60404.0,60403.0,0.33636892]
[1723264537689,0.000831,60404.0,60403.0,0.33636892]
[1723264537886,0.000831,60404.0,60403.0,0.17681492]
[1723264538046,0.001831,60404.0,60403.0,0.34236892]
[1723264538248,0.001831,60404.0,60403.0,0.81677792]
[1723264538692,0.001831,60404.0,60403.0,1.26024796]
[1723264538957,0.001831,60404.0,60403.0,1.59135696]
[1723264539141,0.001831,60404.0,60403.0,1.69135696]
[1723264539342,0.001831,60404.0,60403.0,1.70135696]
[1723264540011,0.001831,60404.0,60403.0,1.70335696]
[1723264540438,0.001831,60404.0,60403.0,1.69335696]
[1723264540668,0.001831,60404.0,60403.0,1.70335696]
[1723264540864,0.001831,60404.0,60403.0,2.40335696]
[1723264541064,0.000831,60404.0,60403.0,2.39735696]
[1723264541552,0.000831,60404.0,60403.0,2.85516596]
[1723264541759,0.000831,60409.0,60408.0,1.347233]
[1723264541960,0.000831,60409.0,60408.0,3.56213494]
[1723264542161,0.000831,60409.0,60408.0,3.76112483]
[1723264542363,0.000831,60432.0,60431.0,0.496432]
[1723264542610,0.000831,60432.0,60431.0,0.16381492]
[1723264543663,0.079331,60432.0,60431.0,0.16381492]
[1723264544213,0.079331,60432.0,60431.0,0.16481492]
[1723264544420,0.079331,60432.0,60431.0,0.16581492]
[1723264545002,0.000831,60432.0,60431.0,0.33129192]
[1723264545995,0.000831,60432.0,60431.0,0.33029192]
[1723264546180,0.000831,60432.0,60431.0,0.33329192]
[1723264546514,0.000831,60432.0,60431.0,0.33229192]
[1723264546876,0.000831,60432.0,60431.0,0.33629192]
[1723264548994,0.000831,60432.0,60431.0,0.33329192]
[1723264549394,0.000831,60432.0,60431.0,0.33629192]
[1723264549599,0.000831,60432.0,60431.0,0.33229192]
[1723264549839,0.000831,60432.0,60431.0,0.32929192]
[1723264549985,0.000831,60432.0,60431.0,0.33629192]
[1723264551063,0.000831,60432.0,60431.0,0.66724692]
[1723264551748,0.000831,60432.0,60431.0,0.17081492]
[1723264552593,0.000831,60432.0,60431.0,0.33629192]
[1723264553739,0.067131,60432.0,60431.0,0.17081492]
[1723264554797,0.067131,60432.0,60431.0,0.16381492]
[1723264555089,0.067131,60432.0,60431.0,0.16681492]
[1723264555531,0.067131,60432.0,60431.0,0.16381492]
[1723264555710,0.067131,60432.0,60431.0,0.16581492]
[1723264555905,0.067131,60432.0,60431.0,0.16681492]